Cogmind - Beta 10.2 @@@ ROGUE MODE // 2021.11.18 @ 12:39:27 Player: Jelly Result: Self-destructed Performance ------------- Evolutions (2) 1000 Regions Visited (4) 800 Robots Destroyed (18) 90 Value Destroyed (697) 697 Prototype IDs (1) 20 Alien Tech Used (0) 0 Bonus (266) 266 TOTAL SCORE: 2873 Bonus ------- Follower Combat Kills 266 Cogmind --------- Core Integrity 273/550 Matter 285/300 Energy 22/100 System Corruption 0% Temperature Cool (357) Movement Core (550) Ox10 Location -8/Materials Parts ------- > --- POWER (1) -------- (None) > --- PROPULSION (3) --- Improved Aluminum Leg Titanium Leg > --- UTILITY (5) ------ Improved Heat Sink Large Storage Unit Structural Scanner Experimental Sensor Array > --- WEAPON (2) ------- Plasma Cannon Plasma Cannon > --- INVENTORY (10) --- Ion Engine Improved Ion Engine Transmission Jammer EM Pulse Gun Plasma Cannon Heavy Assault Rifle Rocket Launcher Heavy Hammer Peak State ------------ > --- POWER ------------ Light Nuclear Core > --- PROPULSION ------- Light Treads Improved Aluminum Leg Titanium Leg > --- UTILITY ---------- Improved Heat Sink Large Storage Unit Structural Scanner Experimental Sensor Array Hardened Light Armor Plating > --- WEAPON ----------- Plasma Cannon Plasma Cannon > --- INVENTORY -------- Ion Engine Improved Ion Engine Transmission Jammer EM Pulse Gun Heavy Assault Rifle Rocket Launcher Heavy Hammer [Rating: 31] Favorites ----------- Power Ion Engine Engine Ion Engine Power Core Light Nuclear Core Propulsion Light Treads Treads Light Treads Leg Titanium Leg Wheel Wheel Utility Experimental Sensor Array Device Experimental Sensor Array Storage Small Storage Unit Protection Hardened Light Armor Plating Weapon EM Pulse Gun Energy Gun EM Pulse Gun Energy Cannon Plasma Cannon Ballistic Gun Heavy Assault Rifle Launcher Grenade Launcher Impact Weapon Heavy Hammer Build | -11 -10 -10 -9 -8 ------- Run | Scr Mat Min Mat Mat Slots Evolved 4 | . . . 2 2 Power . | . . . . . Propulsion 1 | . . . . 1 Utility 3 | . . . 2 1 Weapon . | . . . . . Parts Attached 38 | 7 3 1 12 15 Power 4 | 1 . . 1 2 Engine 3 | 1 . . 1 1 Core 1 | . . . . 1 Reactor . | . . . . . Propulsion 9 | 3 . . 2 4 Treads 6 | 2 . . 2 2 Leg 2 | . . . . 2 Wheel 1 | 1 . . . . Hover . | . . . . . Flight . | . . . . . Utility 13 | 1 3 1 5 3 Device 8 | . 2 1 3 2 Storage 2 | 1 . . 1 . Processor . | . . . . . Hackware . | . . . . . Protection 3 | . 1 . 1 1 Artifact . | . . . . . Weapon 12 | 2 . . 4 6 Energy Gun 4 | 2 . . 2 . Energy Cannon 2 | . . . . 2 Ballistic Gun 3 | . . . 1 2 Ballistic Cannon . | . . . . . Launcher 1 | . . . 1 . Special Weapon . | . . . . . Impact Weapon 2 | . . . . 2 Slashing Weapon . | . . . . . Piercing Weapon . | . . . . . Special Melee Weapon . | . . . . . Unidentified Prototypes 1 | . . 1 . . Parts Lost 11 | . . . . 11 Power 2 | . . . . 2 Propulsion 4 | . . . . 4 Utility 3 | . . . . 3 Weapon 2 | . . . . 2 Highest Loss Streak 6 | . . . . 6 Average Slot Usage (%) 97 | . 95 100 96 96 Engine 11 | . 14 14 11 6 Treads 24 | . 28 28 22 18 Leg 1 | . . . . 6 Device 18 | . 9 14 26 25 Storage 12 | . 14 14 11 9 Protection 2 | . . . 3 9 Energy Gun 20 | . 28 28 18 2 Ballistic Gun 2 | . . . 3 10 Naked Turns . | . . . . . Heaviest Build 43 | 13 14 14 35 43 Greatest Support 60 | 40 40 40 40 60 Greatest Overweight (x) 4 | 4 . . . 1 Average Overweight (x) . | . . . . . Largest Inventory Capacity 12 | 6 6 6 12 10 Average Capacity 7 | 5 6 6 9 10 Most Carried 10 | 6 6 6 10 10 Average Carried 6 | 4 5 6 9 8 Final Capacity 10 | 6 6 6 10 10 Final Carried 10 | 5 6 6 10 8 Class Distribution -------------------- 100% | Mutant Dominant Class ---------------- Mutant | -10/Materials Mutant | -10/Mines Mutant | -9/Materials Mutant | -8/Materials Resources | -11 -10 -10 -9 -8 ----------- Run | Scr Mat Min Mat Mat Matter Collected 659 | 205 49 44 90 271 Remotely . | . . . . . Salvage Created 921 | . 49 3 271 598 Parts 33 | . 1 . 20 12 Haulers Intercepted 2 | . . . 2 . Recyclers Shooed 3 | . 1 . 2 . Parts Field Recycled . | . . . . . Retrieved Matter . | . . . . . Parts Self-Destructed . | . . . . . Prevented . | . . . . . Kills | -11 -10 -10 -9 -8 ------- Run | Scr Mat Min Mat Mat Combat Hostiles Destroyed 17 | . 1 1 4 11 Melee 3 | . . . . 3 Guns 11 | . 1 1 4 5 Cannons 2 | . . . . 2 Classes Destroyed 6 | . 1 1 3 1 Hauler 2 | . . . 2 . Swarmer 1 | . . . 1 . Grunt 12 | . 1 . 2 9 Sentry 2 | . . . 1 1 Hunter 1 | . . . . 1 Assembled 1 | . . 1 . . Best Kill Streak 4 | . 1 1 2 4 Combat Bots Only 4 | . 1 1 1 4 Max Kills in Single Turn 1 | . 1 1 1 1 Gunslinging . | . . . . . Exploded . | . . . . . Melee 1 | . . . . 1 Uniques/NPCs Destroyed . | . . . . . Combat | -11 -10 -10 -9 -8 -------- Run | Scr Mat Min Mat Mat Damage Taken 2092 | . 33 . 158 1901 Core 308 | . . . 31 277 Absorbed by Shields . | . . . . . Core Remaining (%) 97 | 100 . 100 92 . Volleys Fired 64 | . 13 1 12 38 Largest 2 | . 2 2 2 2 Hottest 160 | . 90 90 96 160 Shots Fired 128 | . 26 2 24 76 Gun 114 | . 26 2 24 62 Cannon 14 | . . . . 14 Launcher . | . . . . . Special . | . . . . . Kinetic 56 | . . . . 56 Thermal 40 | . 13 1 12 14 Explosive . | . . . . . Electromagnetic 32 | . 13 1 12 6 Robot Hit Streak 19 | . 10 1 6 19 Robot Miss Streak 2 | . 2 . 2 2 Penetration Max . | . . . . . Secondary Targets 2 | . . . 1 1 Max Gunslinging Chain 1 | . . . 1 1 Shots Hit Robots 118 | . 18 1 15 84 Core Hits 36 | . 2 1 9 24 Critical Hits . | . . . . . Critical Kills . | . . . . . Critical Parts Destroyed . | . . . . . Melee Attacks 33 | . . . . 33 Impact 33 | . . . . 33 Slashing . | . . . . . Piercing . | . . . . . Sneak Attacks . | . . . . . Combat Hostiles . | . . . . . Follow-up Attacks . | . . . . . Damage Inflicted 2068 | 3 171 17 224 1653 Guns 1148 | . 171 10 219 748 Cannons 278 | . . . . 278 Explosions . | . . . . . Melee 622 | . . . . 622 Ramming 20 | 3 . 7 5 5 Kinetic 678 | . . . . 678 Thermal 430 | . 64 . 88 278 Explosive . | . . . . . Electromagnetic 318 | . 107 10 131 70 Impact 622 | . . . . 622 Slashing . | . . . . . Piercing . | . . . . . Highest Corruption . | . . . . . Average Corruption . | . . . . . Corruption Purged . | . . . . . Overload Shots . | . . . . . Overflow Damage 47 | . . . . 47 Projectiles . | . . . . . Explosions . | . . . . . Melee 47 | . . . . 47 Knockbacks 6 | . . . . 6 Impact 4 | . . . . 4 Kinetic . | . . . . . Secondary 2 | . . . . 2 Self-Inflicted Damage . | . . . . . Shots . | . . . . . Rammed 7 | 1 1 3 1 1 Targets Rammed 7 | 1 1 3 1 1 Kicked . | . . . . . Crushed . | . . . . . Highest Temperature 357 | . 132 30 39 357 Average Temperature 77 | . 53 18 17 213 Received Heat Transfer 1011 | . 18 . 57 936 Siege Activations . | . . . . . Robots Corrupted . | . . . . . Combat Hostiles . | . . . . . Parts Fried 2 | . . . 1 1 Impact Corruptions 3 | . . . . 3 Robots Melted . | . . . . . Combat Hostiles . | . . . . . Parts Melted 2 | . . . . 2 Heat Transferred 957 | . 185 . 222 550 Parts Sabotaged . | . . . . . Parts Stolen . | . . . . . Parts Stripped . | . . . . . Power Chain Reactions . | . . . . . Missiles Intercepted . | . . . . . Alert | -11 -10 -10 -9 -8 ------- Run | Scr Mat Min Mat Mat Peak Influence 332 | . 82 31 332 298 Initial 89 | . . 31 . 89 Average 75 | . 33 11 170 170 Maximum Alert Level 1 | . . . 1 1 Low Security (%) 85 | 100 100 100 63 61 Level 1 14 | . . . 36 38 Level 2 . | . . . . . Level 3 . | . . . . . Level 4 . | . . . . . Level 5 . | . . . . . High Security . | . . . . . Max Security . | . . . . . Squads Dispatched 5 | . 1 . . 4 Investigation . | . . . . . Extermination . | . . . . . Reinforcement 5 | . 1 . . 4 Assault . | . . . . . Garrison . | . . . . . Intercept . | . . . . . Construction Impeded . | . . . . . Haulers Reinforced . | . . . . . Stealth | -11 -10 -10 -9 -8 --------- Run | Scr Mat Min Mat Mat Distress Signals 2 | . . . . 2 Communications Jammed . | . . . . . Distress Signals . | . . . . . Times Spotted 38 | . 3 1 13 21 Peak Tracking Total 6 | . 1 1 3 6 Tactical Retreats 3 | . . . . 3 Traps | -11 -10 -10 -9 -8 ------- Run | Scr Mat Min Mat Mat Traps Triggered 1 | . . . 1 . Indirectly . | . . . . . Trap Hack Attempts . | . . . . . Triggered . | . . . . . Disarmed . | . . . . . Reprogrammed . | . . . . . Reused . | . . . . . Traps Extracted . | . . . . . Installed . | . . . . . Triggered . | . . . . . Machines | -11 -10 -10 -9 -8 ---------- Run | Scr Mat Min Mat Mat Machines Disabled 1 | . . . . 1 Max in Single Turn 1 | . . . . 1 Garrison Access 1 | . . . . 1 Machines Sabotaged . | . . . . . Garrisons Compromised . | . . . . . Overloaded Fab Kills . | . . . . . Fab Network Shutdowns . | . . . . . Hacking | -11 -10 -10 -9 -8 --------- Run | Scr Mat Min Mat Mat Machines Accessed 7 | . 3 . 2 2 Terminals 5 | . 3 . 1 1 Fabricators . | . . . . . Repair Stations . | . . . . . Recycling Units . | . . . . . Scanalyzers 1 | . . . 1 . Garrison Access 1 | . . . . 1 Total Hacks 21 | . 12 . 5 4 Successful 10 | . 6 . 3 1 Failed 11 | . 6 . 2 3 Catastrophic 1 | . 1 . . . Database Lockouts . | . . . . . Manual 13 | . 8 . 2 3 Terminals 18 | . 12 . 3 3 Fabricators . | . . . . . Repair Stations . | . . . . . Recycling Units . | . . . . . Scanalyzers 2 | . . . 2 . Garrison Access 1 | . . . . 1 Terminal Hacks 6 | . 5 . 1 . Record 1 | . . . 1 . Part Schematic 2 | . 2 . . . Robot Analysis 1 | . 1 . . . Terminal Index 1 | . 1 . . . Zone Layout 1 | . 1 . . . Fabricator Hacks . | . . . . . Repair Station Hacks . | . . . . . Recycling Unit Hacks . | . . . . . Scanalyzer 2 | . . . 2 . Insert Component 1 | . . . 1 . Analyze 1 | . . . 1 . Garrison Access Hacks 1 | . . . . 1 Seal Access 1 | . . . . 1 Unauthorized Hacks 1 | . 1 . . . Terminals 1 | . 1 . . . Botnet 1 | . 1 . . . Fabricators . | . . . . . Repair Stations . | . . . . . Recycling Units . | . . . . . Scanalyzers . | . . . . . Garrison Access . | . . . . . Data Cores Recovered . | . . . . . Used . | . . . . . Hacking Detections 6 | . 3 . 2 1 Full Trace Events . | . . . . . Feedback Events . | . . . . . Feedback Blocked . | . . . . . Robot Schematics Acquired . | . . . . . Robots Built . | . . . . . Matter . | . . . . . Time . | . . . . . Total Robot Build Rating . | . . . . . Part Schematics Acquired 3 | . 2 . 1 . Parts Built . | . . . . . Matter . | . . . . . Time . | . . . . . Total Part Build Rating . | . . . . . Parts Repaired . | . . . . . Time . | . . . . . Parts Recycled . | . . . . . Recycled Matter . | . . . . . Retrieved Matter . | . . . . . Retrieved Components . | . . . . . Parts Scanalyzed 1 | . . . 1 . Part Schematics Acquired 1 | . . . 1 . Parts Damaged . | . . . . . Bothacking | -11 -10 -10 -9 -8 ------------ Run | Scr Mat Min Mat Mat Used RIF Installer . | . . . . . Robots Hacked . | . . . . . Non-combat . | . . . . . Combat . | . . . . . Robot Hacks Applied . | . . . . . Relay Couplers Released . | . . . . . Robots Rewired . | . . . . . Allies Hacked . | . . . . . Hacks Repelled . | . . . . . Allies | -11 -10 -10 -9 -8 -------- Run | Scr Mat Min Mat Mat Total Allies 5 | . . 5 . . Largest Group 5 | . . 5 5 1 Highest-Rated Group 81 | . . 81 81 25 Highest-Rated Ally 31 | . . 31 31 25 Total Orders . | . . . . . Ally Attacks 65 | . . 20 35 10 Total Damage 814 | . . 149 522 143 Kills 13 | . . 1 11 1 Allies Corrupted . | . . . . . Allies Melted . | . . . . . Intel | -11 -10 -10 -9 -8 ------- Run | Scr Mat Min Mat Mat Robot Analysis Total 1 | . 1 . . . Derelict Logs Recovered 1 | . . 1 . . Drone Launches . | . . . . . Drone Recoveries . | . . . . . Exploration | -11 -10 -10 -9 -8 ------------- Run | Scr Mat Min Mat Mat Turns Passed 2470 | 108 326 1072 496 468 Spaces Moved 1011 | 62 174 381 260 134 Core 16 | 16 . . . . Treads 947 | 31 174 381 260 101 Legs 33 | . . . . 33 Wheels 15 | 15 . . . . Hover . | . . . . . Flight . | . . . . . Fastest Speed 50 | 50 160 160 160 125 Average Speed 158 | 142 160 160 160 157 Slowest Speed 250 | 250 160 160 160 180 Overloaded Moves . | . . . . . Propulsion Burnouts . | . . . . . Robots Hopped . | . . . . . Cave-ins Triggered . | . . . . . Exploration Rate (%) 36 | 5 30 90 35 22 Regions Visited 4 Branch Regions 1 Pre-discovered Areas . | . . . . . Known Exits Taken . | . . . . . Unknown Exits Taken 4 | 1 1 1 1 . Scrap Searched 1 | . . 1 . . Spaces Dug 2 | . . . . 2 Terrain Destroyed 4 | . . . . 4 Melee 2 | . . . . 2 Projectile 2 | . . . . 2 AOE . | . . . . . Terrain Rammed . | . . . . . Walls Destroyed . | . . . . . Machines Disabled . | . . . . . Actions | -11 -10 -10 -9 -8 --------- Run | Scr Mat Min Mat Mat Total 1679 | 80 195 841 317 246 Wait 477 | . . 452 7 18 Move 1007 | 61 173 380 259 134 Hop . | . . . . . Pick Up 29 | 9 2 1 12 5 Fast Attach 16 | 4 3 1 6 2 Attach 14 | 3 . . 1 10 Detach 5 | . . 1 2 2 Swap 8 | . . . 5 3 Drop 19 | 2 3 2 12 . Fire 64 | . 13 1 12 38 Melee 33 | . . . . 33 Ram . | . . . . . Kick . | . . . . . Crush 7 | 1 1 3 1 1 Escape Stasis . | . . . . . Rewire . | . . . . . Trap . | . . . . . Miscellaneous . | . . . . . Route ------- -11/Scrapyard -10/Materials -10/Mines (discovered 2 exits: *Mat x2) -9/Materials -8/Materials History --------- Turn | Location | Event 20 | -11/Scrapyard | Discovered new exit (range 16) 109 | -11/Scrapyard | Entered Materials 154 | -10/Materials | Discovered new exit (range 16) 324 | -10/Materials | Build established: Mutant 435 | -10/Materials | Entered Mines 566 | -10/Mines | Assembled infested the area 605 | -10/Mines | Found a damaged Exp. Sensor Array with a note attached 609 | -10/Mines | Found Prototype Device 609 | -10/Mines | Identified Exp. Sensor Array 1196 | -10/Mines | Assisted by bots powering up and referring to "LRC-V3" 1337 | -10/Mines | Discovered new exit (range 6) 1364 | -10/Mines | Learned Materials terminal intel 1434 | -10/Mines | Discovered new exit (range 11) 1507 | -10/Mines | Entered Materials 1507 | -9/Materials | Accompanied by 5 allies 1507 | -9/Materials | Evolved 2 slots: Utility x2 1508 | -9/Materials | Loaded intel: 12 terminal locations 1512 | -9/Materials | Led the pair of lost Derelicts to an unsafe place 1943 | -9/Materials | Discovered new exit (range 16) 2003 | -9/Materials | Entered another Materials area 2003 | -8/Materials | Accompanied by 1 ally 2003 | -8/Materials | Evolved 2 slots: Propulsion x1, Utility x1 2315 | -8/Materials | Lost 6 parts (3n1u2w) 2465 | -8/Materials | Core integrity fell below 50% 2471 | -8/Materials | Self-destructed Last Messages --------------- 02417_ K-01 Serf collects debris. 02419_ Acquired 4 matter. 02419_ K-01 Serf collects debris. 02423_ Acquired 3 matter. 02424_ K-01 Serf collects debris. 02432_ W-25 Informer sends out distress signal. 02436_ Acquired Plasma Cannon. 02446_ Slug penetrates Wall. 02451_ Y-45 Defender destroyed. 02460_ H-55 Commando heat damages Gauss Rifle. 02460_ Assault Rifle melted. 02460_ Carbon-fiber Leg melted. 02460_ H-55 Commando destroyed. 02464_ Lgt. Nuclear Core destroyed. 02467_ R-06 Scavenger collects Heat Sink. 02467_ K-01 Serf collects debris. 02468_ Electrolysis Chamber disabled. 02470_ Lgt. Treads destroyed. 02470_ Hrd. Light Armor Plating destroyed. 02470_ K-01 Serf collects debris. Map ----- +----------------------------------------------------+ | | | | | | | ?????????????????????????????????????????????????? | | ?????????????????????????????????????????????????? | | ?????????????????????????????????????????????????? | | ?????????????????????????????????????????????????? | | ?????????????????????????????????????????????????? | | ?????????????????????????????????????????????????? | | ?????????????????????????????????????????????????? | | ?????????????????????????????????????????????????? | | ?????????????????????????????? ??????????????????? | | ????????????????????????????? #????????????????? | | ????????????????????????????? #????????????????? | | ????????????????????????????# #????????????????? | | ????????????????????????????# #####????????????? | | ????????????????????????????# ?????????????? | | ????????????????????????????# ??????????????? | | ????????????????????????????# r ???????????????? | | ????????????????????????????# !r#????????????????? | | ????????????????????????##### !#????????????????? | | ????????????????????????#!! ########?????????? | | ????????????????????????#!! # #?????????? | | ????????????????????????#!! # """ #?????????? | | ????????????????????????#!! ; """ #?????????? | | ????????????#######?????#@] Y # """ #?????????? | | ????????????# #?????# !Y ; #?????????? | | ? ###### ###########k # "" #?????????? | | ????T ! T % # """ #?????????? | | ?????????#### ### % %+ """ #?????????? | | ????????????# #?# %%""%""" # #?????????? | | ####+###??#####+#####% %"""""" # #?????????? | | # % #??# # """""" ########?????????? | | # """ #### # """"""" #???????????????? | | # """ + + # """"""" #???????????????? | | # """ #### """"""" + ? #???????????????? | | # """ #??# """"""" # #???????????????? | | # #??# """"""" ####+### #???????????????? | | #"######??# """"""" #?? ??## ##???????????????? | | ##"##?????# """""?"?#???????# #????????????????? | | ?## ###########?????????????# #????????????????? | | ?# #?????????????# #????????????????? | | ?#"" """ #?????????????# #????????????????? | | ?#"T [ """ #?????????????# #????????????????? | | ?#""= """ #?????????????# #????????????????? | | ?# == #?????????????? ?????????????????? | | ?# = """ #??????????????" ?????????????????? | | ?# """ #???????????????T ?????????????????? | | ?# """ #??????????????????????????????????? | | ?# #??????????????????????????????????? | +----------------------------------------------------+ Best States ------------- Heat Dissipation 45 Energy Generation 14 Energy Capacity 275 Matter Stores 300 Matter Capacity 300 Sight Range 16 Robot Scan Range 30 Terrain Scan Range 14 Terrain Scan Density 10 Armor Coverage 150 Core Shielding 20 Evasion (%) 40 Recoil Reduction 3 Item Schematics ----------------- Lrg. Storage Unit | -10/Materials | Hacked Structural Scanner | -10/Materials | Hacked Rocket Launcher | -9/Materials | Scanalyzed Robot Schematics ------------------ None Fabricated ------------ Nothing Alien Tech Used ----------------- None Achievements -------------- None Challenges ------------ None Game ------ Seed BiometalBombardmentTreads Manual? 0 Play Time 00:30:31 Cumulative 4.1 hours Start 2021.11.14 @ 09:44:52 End 2021.11.18 @ 12:39:27 Sessions 6 Manual Loads 0 Difficulty Rogue Special Mode None Game No. 5 Rogue 5 Adventurer 0 Explorer 0 Win Type - Total 0 Types 0/0/0/0/0/0/0/0/0 Lore% 5 Gallery% 11 Achievement% 22 Wizard Run 0 Options --------- ASCII 0 Keyboard 1 Movement Numpad Keybinds 0 Fullscreen 1 Font 24/Terminus Map View 76x50 Tactical HUD 1 Map Filters NONE Filters NONE Steam 1 RUN: 653f07ca-f40a-4d0a-98ce-1fbd60b3b112